bitfinex/quotes_ETHUSD_20251226
["timestamp","ask_amount","ask_price","bid_price","bid_amount"]
[1766734656531,0.9156,2971.0,2970.6,0.001]
[1766734656911,3.36560975,2971.3,2970.6,0.001]
[1766734657111,0.9156,2971.2,2970.6,0.001]
[1766734657920,0.9156,2971.2,2970.6,0.884]
[1766734658523,0.9156,2971.2,2970.6,4.25028319]
[1766734658842,0.9156,2971.2,2970.6,8.37838931]
[1766734659041,0.9156,2971.6,2970.6,8.37838931]
[1766734659417,0.9156,2971.6,2970.7,16.454911]
[1766734659613,0.9156,2971.6,2970.7,13.964991]
[1766734659822,0.9156,2971.6,2970.8,2.10266572]
[1766734660039,0.9156,2971.6,2970.7,15.602086]
[1766734660658,0.9156,2971.6,2970.8,3.36609667]
[1766734661035,0.9156,2971.6,2970.9,0.883]
[1766734661036,0.002,2971.5,2970.9,0.883]
[1766734662267,0.9156,2971.9,2970.9,7.6149397]
[1766734663456,0.9391,2971.8,2970.9,7.6149397]
[1766734665274,0.9354,2971.7,2970.6,0.001]
[1766734665453,0.9354,2971.5,2970.7,0.883]
[1766734667169,0.9354,2971.5,2970.8,3.36609667]
[1766734667474,0.9354,2971.5,2970.8,4.24909667]
[1766734669088,0.9354,2971.5,2970.8,0.883]
[1766734669280,0.9354,2971.4,2970.8,0.883]
[1766734669458,0.9354,2971.4,2970.8,4.24909274]
[1766734674596,0.002,2971.5,2970.8,7.61518941]
[1766734674891,0.002,2971.5,2970.8,4.24909274]
[1766734676091,0.9374,2971.5,2970.8,4.24909274]
[1766734677090,0.002,2971.5,2970.9,0.76152947]
[1766734677466,0.9354,2971.4,2970.9,1.64452947]
[1766734677880,0.9354,2971.4,2970.9,0.883]
[1766734678901,0.9354,2971.4,2970.9,4.24896953]
[1766734679882,0.9354,2971.4,2970.9,0.883]
[1766734680413,0.9354,2971.4,2970.9,4.24897133]
[1766734680577,0.9354,2971.4,2970.9,0.883]
[1766734680782,0.9354,2971.4,2970.6,0.001]
[1766734681113,0.9354,2971.3,2970.6,0.001]
[1766734681290,0.9354,2971.3,2970.7,0.883]
[1766734681683,0.9354,2971.3,2970.6,0.001]
[1766734681684,0.9354,2971.2,2970.6,0.001]
[1766734683177,0.9354,2971.1,2970.6,0.001]
[1766734685687,0.002,2971.5,2970.6,0.03466323]
[1766734685895,0.9374,2971.5,2970.6,0.001]
[1766734687406,0.9374,2971.5,2970.7,0.67348732]
[1766734688606,0.9354,2971.4,2970.7,0.67348732]
[1766734688808,0.9354,2971.4,2970.6,0.001]
[1766734689005,0.9354,2971.4,2970.7,0.883]
[1766734689506,0.9354,2971.4,2970.6,3.36729458]
[1766734689707,0.9354,2971.4,2970.7,4.2491858]
[1766734690112,0.9354,2971.4,2970.8,0.883]
[1766734690303,0.9354,2971.3,2970.8,0.883]
[1766734690614,0.9354,2971.3,2970.6,3.36730167]
[1766734690810,0.9354,2971.3,2970.7,0.883]
[1766734691414,0.9354,2971.3,2970.6,3.36730167]
[1766734691415,0.9354,2971.3,2970.6,0.001]
[1766734691589,0.9354,2971.3,2970.7,0.883]
[1766734692792,0.9354,2971.2,2970.6,0.001]
[1766734693194,0.9354,2971.2,2970.6,0.884]
[1766734695293,0.9354,2971.2,2970.6,0.001]
[1766734695495,0.9354,2971.2,2970.6,0.884]
[1766734697127,0.9481,2971.1,2970.6,0.001]
[1766734697445,0.9481,2971.1,2970.3,0.883]
[1766734698898,0.9481,2970.9,2970.2,0.883]
[1766734699127,0.9481,2970.7,2970.2,0.883]
[1766734699529,0.9481,2971.4,2970.2,10.98332992]
[1766734699698,0.9481,2971.4,2970.2,7.61655328]
[1766734699894,0.9481,2971.3,2970.3,1.64599431]
[1766734700527,0.9481,2971.3,2970.4,0.03366549]
[1766734700724,0.9481,2971.3,2970.3,1.64599431]
[1766734700927,0.9481,2971.3,2970.4,0.883]
[1766734701131,0.9481,2971.2,2970.5,0.883]
[1766734701930,0.9481,2971.2,2970.5,1.38425406]
[1766734703626,0.9481,2971.2,2970.5,3.86766158]
[1766734703827,0.9481,2971.2,2970.5,1.38425406]
[1766734704126,0.9481,2971.2,2970.5,0.883]
[1766734704928,0.9481,2971.1,2970.5,0.883]
[1766734705130,0.9481,2971.1,2970.5,4.24941673]
[1766734705314,0.9481,2971.1,2970.5,3.36641673]
[1766734705516,0.9481,2971.1,2970.3,4.25063068]
[1766734705717,0.9481,2971.1,2970.4,0.37042797]
[1766734705895,0.9481,2971.1,2970.4,0.03366549]
[1766734706103,3.36577123,2971.1,2970.3,0.001]
[1766734706302,3.36577123,2971.1,2970.3,0.884]
[1766734706303,0.9481,2971.0,2970.3,0.884]
[1766734706502,0.9481,2971.0,2970.3,0.001]
[1766734706805,0.9481,2971.0,2970.3,0.884]
[1766734707198,0.9481,2971.3,2970.4,0.03366549]
[1766734707403,0.9481,2971.3,2970.3,4.67566578]
[1766734707922,0.9481,2971.3,2970.3,8.04232908]
[1766734708907,0.9481,2971.3,2970.3,4.67566578]
[1766734709108,0.9481,2971.2,2970.3,4.67566578]
[1766734709404,3.36565085,2971.2,2970.3,4.67566578]
[1766734709604,3.36565085,2971.2,2970.3,1.30907104]
[1766734709605,0.9481,2971.1,2970.3,1.30907104]
[1766734709810,0.9481,2971.1,2970.3,4.25060609]
[1766734710234,4.31356186,2971.4,2970.3,7.61726939]
[1766734710434,0.9481,2971.3,2970.3,4.25060609]
[1766734711157,0.9481,2971.3,2970.4,0.883]
[1766734711461,0.9481,2971.2,2970.4,0.883]
[1766734711680,0.9481,2971.2,2970.4,4.24949057]
[1766734712566,0.9481,2971.2,2970.4,7.61604052]
[1766734713164,0.9481,2971.2,2970.5,0.03366436]
[1766734713334,0.9481,2971.2,2970.4,7.61604052]
[1766734713541,0.9481,2971.2,2970.5,4.12809863]
[1766734715043,0.9481,2971.2,2970.5,4.12909863]
[1766734715244,0.002,2971.2,2970.5,4.12909863]
[1766734716156,0.002,2971.2,2970.5,0.76270405]
[1766734716368,0.002,2971.2,2970.5,0.884]
[1766734716868,0.002,2971.2,2970.5,4.25040868]
[1766734717068,0.002,2971.2,2970.5,0.884]
[1766734717269,0.002,2971.2,2970.5,4.25042975]
[1766734719076,0.002,2971.2,2970.5,0.884]
[1766734719274,0.002,2971.2,2970.5,1.30916262]
[1766734719465,0.002,2971.2,2970.5,4.67559043]
[1766734719776,0.002,2971.2,2970.5,1.30916262]
[1766734719956,0.002,2971.2,2970.5,4.67556247]
[1766734720157,0.002,2971.2,2970.5,4.67556994]
[1766734720375,0.002,2971.2,2970.6,0.46755699]
[1766734721972,0.9501,2971.2,2970.6,3.8338711]
[1766734724675,0.002,2971.2,2970.6,3.8338711]
[1766734725479,0.002,2971.2,2970.6,7.2001944]
[1766734725650,0.002,2971.2,2970.7,0.88459779]
[1766734725849,0.9628,2972.2,2970.7,0.88459779]
[1766734726078,0.9628,2972.2,2970.7,0.8509357]
[1766734726280,0.9628,2972.2,2970.8,12.991956]
[1766734726476,0.9628,2972.2,2970.9,1.38428917]
[1766734726684,0.9628,2972.2,2971.1,6.73151358]
[1766734726857,0.9628,2972.2,2971.1,3.36575679]
[1766734727175,0.9628,2972.2,2971.6,0.01338979]
[1766734727361,0.9628,2972.2,2971.8,0.01338979]
[1766734727555,0.002,2972.4,2971.8,0.01338979]
[1766734727556,0.002,2972.4,2971.8,0.03364963]
[1766734727762,0.002,2972.4,2971.9,0.01338979]
[1766734728467,0.002,2972.4,2971.7,0.883]
[1766734728673,0.9648,2972.4,2971.7,0.883]
[1766734728980,0.9648,2972.4,2971.7,1.30916338]
[1766734729179,0.9648,2972.4,2971.7,4.24806712]
[1766734729348,0.9648,2972.4,2971.8,0.04703942]
[1766734729680,0.002,2972.4,2971.8,0.04703942]
[1766734729854,0.002,2972.4,2971.8,4.00670434]
[1766734730054,0.002,2972.4,2972.0,0.01338979]
[1766734730254,0.002,2972.4,2972.0,0.4153992]
[1766734730448,0.002,2972.4,2972.0,0.40200941]
[1766734730656,0.002,2972.4,2972.1,0.883]
[1766734731169,0.9648,2972.4,2972.1,0.883]
[1766734732155,0.002,2972.4,2972.1,0.883]
[1766734732381,0.9648,2972.7,2972.2,0.4281338]
[1766734732681,0.002,2972.7,2972.2,0.4281338]
[1766734733469,0.9628,2973.2,2972.3,0.04703376]
[1766734733670,0.9628,2973.2,2972.3,0.03364397]
[1766734733883,0.9628,2973.2,2972.2,3.37788107]
[1766734734086,0.9628,2973.2,2972.4,0.01338979]
[1766734734276,0.9628,2973.2,2972.4,0.68896799]
[1766734734465,0.9628,2973.2,2972.4,0.6755782]
[1766734734665,0.9628,2973.2,2972.2,3.37789863]
[1766734734855,0.9628,2973.1,2972.2,0.01338979]
[1766734735262,0.9628,2973.1,2972.2,3.37787063]
[1766734736084,0.9628,2973.1,2972.2,0.01338979]
[1766734736392,0.9628,2973.1,2972.2,3.37783973]
[1766734736586,0.9628,2973.1,2972.3,0.82205046]
[1766734737092,0.9628,2973.1,2972.4,0.01338979]
[1766734737887,0.9648,2973.1,2972.4,0.01338979]
[1766734744199,4.32829473,2973.1,2972.4,0.01338979]
[1766734744503,0.9648,2973.1,2972.4,0.01338979]
[1766734744884,4.32833316,2973.1,2972.4,0.01338979]
[1766734745279,4.32833316,2973.1,2972.5,0.883]
[1766734745575,0.9648,2973.1,2972.5,0.883]
[1766734745770,1.39761005,2973.1,2972.1,3.95966492]
[1766734746000,0.9628,2973.0,2972.1,0.001]
[1766734746686,0.9628,2972.7,2972.1,0.001]
[1766734747270,0.9628,2972.5,2972.1,0.001]
[1766734747610,0.9628,2972.3,2972.1,0.001]
[1766734748198,0.9628,2972.3,2971.4,0.883]
[1766734749515,0.9628,2972.1,2971.4,0.883]
[1766734749718,0.9628,2972.1,2971.1,0.01338979]
[1766734749923,0.9628,2972.1,2971.3,0.883]
[1766734750117,0.9628,2971.9,2971.3,0.883]
[1766734750314,0.9628,2971.9,2971.2,0.883]
[1766734750694,0.9628,2971.9,2971.1,0.01338979]
[1766734750894,0.9628,2971.9,2971.2,0.883]
[1766734751492,0.9628,2971.7,2971.2,0.883]
[1766734751828,0.9628,2971.6,2971.1,0.883]
[1766734752545,0.9628,2971.6,2971.0,0.001]
[1766734753123,0.9628,2971.6,2971.1,0.883]
[1766734753504,0.9628,2971.6,2971.0,0.884]
[1766734753699,0.9628,2971.6,2971.1,0.001]
[1766734754722,3.36520709,2971.6,2971.1,0.001]
[1766734754920,0.9101,2971.5,2971.1,0.884]
[1766734755638,0.9101,2971.8,2971.1,0.884]
[1766734755931,0.9101,2971.8,2971.2,0.01338979]
[1766734756432,0.9101,2971.8,2971.1,0.884]
[1766734756634,4.27508171,2971.8,2971.1,0.884]
[1766734756934,4.27508171,2971.8,2971.1,0.001]
[1766734756935,0.9101,2971.7,2971.1,0.001]
[1766734757132,0.9101,2971.7,2970.6,0.01338979]
[1766734757133,0.9101,2971.6,2970.5,0.001]
[1766734757333,0.9101,2971.3,2970.5,0.001]
[1766734757507,3.95966492,2971.4,2970.6,0.01338979]
[1766734757508,4.27554283,2971.4,2970.6,0.01338979]
[1766734757703,0.9101,2971.8,2970.6,0.01338979]
[1766734757932,0.9101,2971.6,2970.8,0.01338979]
[1766734758106,0.9101,2971.6,2971.1,3.95742664]
[1766734758301,0.9101,2971.6,2970.8,0.01338979]
[1766734758724,0.9101,2971.6,2970.9,0.883]
[1766734758900,0.9101,2971.5,2970.9,0.883]
[1766734759620,0.9101,2971.3,2970.6,0.01338979]
[1766734759825,0.9101,2971.3,2970.6,0.883]
[1766734761951,0.9101,2971.3,2970.7,0.01338979]
[1766734762305,0.9101,2971.3,2970.9,0.001]
[1766734763951,0.9101,2971.6,2970.9,0.001]
[1766734764240,0.002,2972.3,2971.0,3.95742664]
[1766734764408,0.9101,2972.2,2971.0,3.99108534]
[1766734764607,0.9101,2972.2,2971.1,0.03365756]
[1766734765025,0.9101,2972.1,2970.9,0.82646565]
[1766734765228,0.9101,2971.9,2971.0,0.883]
[1766734765744,0.9101,2971.7,2971.0,0.883]
[1766734767035,0.9101,2971.7,2970.9,0.82646565]
[1766734767236,0.9101,2971.7,2971.0,0.883]
[1766734767626,0.9101,2971.7,2970.9,0.001]
[1766734767627,0.9101,2971.5,2970.9,0.001]
[1766734769709,0.9101,2971.4,2970.9,0.001]
[1766734770325,0.9101,2971.4,2970.5,0.001]
[1766734770537,6.73082174,2971.5,2970.5,0.001]
[1766734770538,0.9101,2971.2,2970.5,0.001]
[1766734771824,0.9101,2971.1,2970.5,0.001]
[1766734773944,0.9101,2971.0,2970.5,0.001]
[1766734775844,0.9101,2970.9,2970.5,0.001]
[1766734776040,0.9101,2970.8,2970.5,0.001]
[1766734778024,3.95742664,2970.6,2969.8,0.001]
[1766734778222,0.883,2970.5,2969.8,0.001]
[1766734778451,0.9101,2970.3,2969.8,0.001]
[1766734780458,3.95742664,2970.2,2969.5,0.001]
[1766734780657,0.9101,2970.1,2969.5,0.001]
[1766734782531,0.9101,2970.0,2969.5,0.001]
[1766734782733,3.36697202,2970.1,2968.9,0.001]
[1766734782734,0.9503,2969.6,2968.9,0.001]
[1766734784156,0.964,2969.2,2968.0,3.95742664]
[1766734784330,0.964,2969.0,2967.7,3.95842664]
[1766734784530,0.964,2969.0,2967.7,0.001]
[1766734784737,0.964,2969.0,2967.9,3.95742664]
[1766734784936,0.964,2968.8,2967.7,0.001]
[1766734785164,0.964,2968.8,2967.7,4.10335179]
[1766734785466,0.964,2968.8,2967.7,4.69124547]
[1766734785668,0.964,2968.8,2967.7,0.73381883]
[1766734785870,0.964,2969.2,2968.7,3.95742664]
[1766734786273,0.964,2969.2,2968.5,3.95742664]
[1766734786450,0.964,2969.2,2968.3,7.32634169]
[1766734786651,0.964,2969.2,2968.3,3.95742664]
[1766734786855,1.847,2969.2,2968.4,0.43076982]
[1766734787051,1.847,2969.2,2968.5,3.95742664]
[1766734787256,1.847,2969.2,2968.6,0.03368591]
[1766734787870,0.883,2969.5,2968.6,0.03368591]
[1766734788077,1.847,2969.5,2968.6,3.95742664]
[1766734788273,1.847,2969.5,2968.7,0.39574266]
[1766734788447,0.964,2969.4,2968.7,0.39574266]
[1766734788649,0.964,2969.3,2968.5,3.95742664]
[1766734788846,0.964,2969.3,2968.7,3.95742664]
[1766734789052,0.964,2969.3,2968.6,0.03368591]
[1766734789356,0.964,2969.3,2968.6,0.34024725]
[1766734789848,0.964,2969.3,2968.6,0.37393316]
[1766734790466,0.964,2969.3,2968.7,3.95742664]
[1766734790772,0.964,2969.3,2968.6,0.34024725]
[1766734791683,0.964,2969.3,2968.7,3.95742664]
[1766734791878,0.964,2969.3,2968.8,0.42976739]
[1766734792277,0.964,2969.3,2968.9,3.95742664]
[1766734792784,0.964,2969.3,2968.8,0.42976739]
[1766734792785,0.964,2970.4,2969.1,3.95742664]
[1766734792956,3.36590898,2971.0,2968.2,0.39717848]
[1766734792957,0.964,2970.2,2968.2,0.39717848]
[1766734793287,0.964,2969.9,2968.7,0.01338979]
[1766734793586,0.964,2969.7,2968.9,0.01338979]
[1766734793887,0.03372534,2969.6,2969.1,3.97081643]
[1766734794083,0.03372534,2969.6,2968.9,3.97081643]
[1766734794289,0.964,2969.5,2968.8,4.35450828]
[1766734794594,0.964,2969.8,2969.4,3.95742664]
[1766734794891,1.848,2970.1,2969.4,3.95742664]
[1766734795195,1.848,2970.1,2969.3,0.01338979]
[1766734795196,0.964,2970.1,2969.3,0.01338979]
[1766734795388,0.964,2970.1,2969.4,0.39708164]
[1766734795781,0.964,2970.1,2969.2,0.01338979]
[1766734796468,0.964,2970.0,2968.9,0.4501796]
[1766734796796,0.964,2970.0,2968.8,0.001]
[1766734797098,0.964,2969.9,2968.8,3.36929983]
[1766734797296,0.884,2969.8,2969.1,3.95742664]
[1766734797595,0.884,2969.8,2968.9,7.32560006]
[1766734797596,1.848,2969.8,2968.9,7.32560006]
[1766734797800,0.964,2970.0,2969.0,4.10207341]
[1766734797980,0.964,2969.7,2969.0,4.10207341]
[1766734798294,0.964,2969.7,2969.1,3.40168809]
[1766734798495,0.964,2969.7,2969.1,7.35911473]
[1766734798696,0.964,2969.7,2969.1,7.3254345]
[1766734798898,0.964,2970.4,2969.5,3.95742664]
[1766734799069,1.848,2970.4,2969.5,3.95742664]
[1766734799400,0.964,2970.3,2969.5,3.95742664]
[1766734800096,0.964,2970.3,2969.6,0.01338979]
[1766734800317,0.884,2970.4,2969.7,3.40095356]
[1766734800635,0.884,2970.4,2969.7,4.07783288]
[1766734800831,0.002,2970.8,2969.9,0.01338979]
[1766734801121,0.964,2970.7,2969.3,0.01338979]
[1766734801287,0.964,2970.5,2969.7,3.36732384]
[1766734801488,0.964,2970.5,2969.8,0.37040468]
[1766734803144,0.964,2970.5,2969.9,3.36711673]
[1766734803413,0.886,2970.8,2969.9,6.73423346]
[1766734804029,0.002,2970.8,2969.9,3.36711673]
[1766734804236,0.002,2970.4,2970.0,0.70710701]
[1766734804835,0.002,2970.8,2970.1,0.0336689]
[1766734805036,0.002,2970.8,2970.0,0.70710701]
[1766734805246,0.002,2970.8,2970.1,3.36689]
[1766734805426,0.964,2971.3,2970.2,16.932956]
[1766734805739,0.002,2971.6,2970.3,1.91047075]
[1766734805939,0.002,2971.6,2970.4,31.79039728]
[1766734806238,4.3765563,2972.3,2970.7,2.571267]
[1766734806239,0.964,2971.9,2970.7,2.571267]
[1766734806540,0.964,2971.7,2970.8,0.03366096]
[1766734806736,0.964,2971.5,2970.4,4.436097]
[1766734806916,0.964,2971.5,2970.6,2.120259]
[1766734807122,0.964,2971.5,2970.7,0.21539234]
[1766734807806,0.964,2971.5,2970.7,3.36618628]
[1766734808013,0.964,2971.5,2970.5,3.36635552]
[1766734808320,0.964,2971.5,2970.6,2.988852]
[1766734808738,0.964,2971.5,2970.6,6.3551285]
[1766734808908,0.964,2971.5,2970.2,20.927177]
[1766734809110,0.964,2971.5,2970.6,3.36628071]
[1766734809637,0.964,2971.5,2970.5,9.668296]
[1766734809841,0.964,2971.9,2970.6,0.91666323]
[1766734810140,0.914,2971.9,2970.7,21.38779109]
[1766734810342,0.002,2972.0,2971.1,25.547674]
[1766734810520,0.002,2972.0,2971.2,0.03365643]
[1766734810720,0.002,2972.0,2970.9,4.519412]
[1766734810938,0.966,2972.0,2970.9,4.519412]
[1766734811116,0.966,2972.0,2971.1,2.727412]
[1766734811712,0.966,2972.0,2970.8,0.01338979]
[1766734811713,0.002,2972.0,2970.8,0.01338979]
[1766734811931,0.002,2972.0,2970.9,3.36590464]
[1766734811932,0.966,2972.0,2970.9,3.36590464]
[1766734812131,0.966,2972.0,2971.0,3.36581191]
[1766734812450,0.964,2971.9,2970.9,2.02182]
[1766734812634,0.964,2971.7,2970.8,3.36600789]
[1766734813142,0.964,2971.7,2970.9,3.36598101]
[1766734813331,0.964,2971.7,2970.8,3.36605631]
[1766734813642,0.964,2971.7,2970.6,3.36731515]
[1766734813841,0.932,2971.5,2970.6,0.001]
[1766734814035,0.932,2971.3,2970.6,0.001]
[1766734816841,0.932,2971.2,2970.6,0.001]
[1766734820254,0.932,2971.5,2970.6,0.001]
[1766734820667,0.932,2971.4,2970.6,0.001]
[1766734821821,0.932,2971.2,2970.6,0.001]
[1766734822024,0.1815,2971.1,2970.6,0.001]
[1766734822251,1.1135,2971.1,2970.6,0.001]
[1766734825318,0.932,2971.0,2970.6,0.001]
[1766734828550,0.002,2971.6,2970.6,0.001]
[1766734828850,0.934,2971.6,2970.6,0.03466323]
[1766734829023,1.45021749,2971.5,2970.6,0.001]
[1766734829220,0.932,2971.5,2970.6,0.001]
[1766734829549,0.932,2971.4,2970.6,0.001]
[1766734829753,0.932,2971.4,2970.6,3.36730951]
[1766734829953,0.932,2971.4,2970.6,0.001]
[1766734832658,0.932,2971.4,2970.6,0.03466323]
[1766734833449,0.932,2971.4,2970.6,3.4009827]
[1766734834254,0.932,2971.4,2970.6,0.03466323]
[1766734834438,1.36192145,2971.4,2970.6,0.001]
[1766734834838,0.42992145,2971.4,2970.6,0.001]
[1766734835057,1.36192145,2971.4,2970.6,0.001]
[1766734835358,0.932,2971.3,2970.6,0.001]
[1766734844860,0.9696,2970.9,2970.5,0.001]
[1766734845176,6.7310828,2971.3,2970.5,0.001]
[1766734845177,0.9696,2970.7,2970.5,0.001]
[1766734846268,0.9696,2970.7,2969.7,0.883]
[1766734846469,0.9696,2970.7,2969.8,3.36716177]
[1766734846641,0.9696,2970.7,2969.7,0.883]
[1766734846642,0.9696,2970.6,2969.7,0.883]
[1766734846844,0.9696,2970.6,2969.7,4.67681731]
[1766734847251,0.9696,2970.6,2969.5,0.001]
[1766734847574,0.9696,2970.6,2969.5,3.36851136]
[1766734847872,0.9696,2970.6,2969.5,0.001]
[1766734848562,0.9696,2970.4,2969.5,0.001]
[1766734848769,0.9696,2970.2,2969.5,0.001]
[1766734849075,0.9696,2970.1,2969.5,0.001]
[1766734851075,0.9696,2970.0,2969.5,0.001]
[1766734852474,0.9696,2970.0,2969.3,0.001]
[1766734852974,0.9696,2969.9,2969.3,0.001]
[1766734853275,0.9696,2969.7,2969.3,0.001]
[1766734854076,0.9696,2969.6,2968.8,0.001]
[1766734855051,0.883,2969.7,2968.8,0.001]
[1766734855052,0.9696,2969.5,2968.8,0.001]
[1766734856160,0.9696,2969.5,2969.3,0.001]
[1766734856361,3.36746415,2969.6,2968.8,0.001]
[1766734856362,0.9696,2969.3,2968.8,0.001]
[1766734858975,0.9696,2969.1,2968.8,0.001]
[1766734860048,0.9696,2969.7,2968.8,0.001]
[1766734860254,0.9696,2969.7,2968.8,0.03468364]
[1766734860480,1.8536,2969.7,2968.8,0.001]
[1766734860675,0.9696,2969.6,2968.8,0.001]
[1766734862480,0.9696,2969.5,2968.8,0.001]
[1766734862877,1.15496,2969.5,2968.8,0.001]
[1766734863268,0.9696,2969.4,2968.8,0.001]
[1766734865165,0.9696,2969.3,2968.4,16.873337]
[1766734865484,0.9696,2969.1,2968.4,16.873337]
[1766734865979,0.9696,2969.1,2968.3,0.001]
[1766734866180,0.884,2969.2,2968.3,0.001]
[1766734866181,0.9696,2968.9,2968.3,0.001]
[1766734867061,0.9696,2968.7,2968.1,0.001]
[1766734867268,0.9696,2968.5,2968.1,0.001]
[1766734867659,0.9696,2968.5,2967.6,0.001]
[1766734869162,3.3687357,2968.5,2967.6,0.001]
[1766734869364,0.9696,2968.3,2967.6,0.001]
[1766734870589,0.9696,2968.3,2966.9,0.201]
[1766734870590,0.9696,2968.3,2966.9,0.001]
[1766734870764,0.9696,2968.3,2967.2,3.37014248]
[1766734871385,0.9696,2968.1,2967.5,0.001]
[1766734872367,4.56420656,2969.5,2967.6,11.26002279]
[1766734872700,0.9696,2969.9,2969.1,0.01338979]
[1766734872998,0.9696,2969.9,2968.8,0.01338979]
[1766734873292,0.9696,2969.8,2968.7,3.36847778]
[1766734874074,0.9696,2969.8,2968.7,6.73695556]
[1766734874272,0.9242,2969.8,2968.7,6.73695556]
[1766734874470,0.9242,2969.7,2967.6,2.846464]
[1766734874989,0.9242,2969.7,2968.2,3.36902871]
[1766734875174,0.9242,2969.7,2967.6,3.36963718]
[1766734875374,0.9242,2969.5,2967.7,8.562382]
[1766734875691,0.9242,2969.3,2967.9,6.722958]
[1766734876371,0.9242,2969.3,2968.0,6.73854446]
[1766734876768,0.9242,2969.2,2968.0,6.73854446]
[1766734878468,0.9242,2969.2,2967.9,10.10815728]
[1766734878670,0.9242,2969.2,2968.1,30.0]
[1766734878874,0.9242,2969.5,2968.3,22.229312]
[1766734879096,0.9262,2969.5,2968.3,22.229312]
[1766734879983,0.9262,2969.5,2968.3,4.165268]
[1766734880197,0.9262,2969.5,2968.3,3.596568]
[1766734880580,0.9262,2969.5,2968.4,3.36881821]
[1766734880787,0.9242,2969.3,2968.4,3.36881821]
[1766734881206,0.9242,2969.3,2968.4,6.73763642]
[1766734882901,0.9242,2969.3,2968.5,0.03368704]
[1766734883101,0.9242,2969.3,2968.2,10.10710259]
[1766734883300,0.9242,2969.3,2968.3,1.01071026]
[1766734885101,0.9242,2969.3,2968.4,6.73763642]
[1766734886178,0.9242,2969.3,2968.5,0.03368704]
[1766734887109,0.9242,2969.3,2968.4,3.36881821]
[1766734887514,0.9262,2969.3,2968.4,3.36881821]
[1766734888593,0.9242,2969.2,2968.1,3.3691362]
[1766734888790,0.9242,2969.2,2968.3,3.36891602]
[1766734889194,0.9242,2969.2,2968.2,6.73809042]
[1766734889508,0.9242,2969.2,2968.2,3.36904521]
[1766734889689,0.9242,2969.2,2967.9,0.884]
[1766734889690,0.9242,2969.1,2967.8,3.3694062]
[1766734889894,0.9242,2968.9,2968.0,3.36915995]
[1766734890209,0.9242,2968.9,2967.9,3.36931802]
[1766734890417,0.9242,2968.9,2968.0,3.36924427]
[1766734890586,0.9242,2968.9,2968.1,3.36915167]
[1766734891620,0.9242,2968.9,2968.0,3.36921825]
[1766734891924,0.9242,2968.7,2967.9,3.369354]
[1766734892788,0.9242,2968.7,2967.9,6.73873976]
[1766734892997,0.9242,2968.7,2967.9,3.369354]
[1766734893404,0.9242,2968.7,2967.5,0.001]
[1766734893405,0.9242,2968.7,2967.8,3.36944914]
[1766734893925,0.9242,2968.7,2967.5,0.001]
[1766734894219,0.9242,2968.5,2967.5,0.001]
[1766734894523,0.44734572,2968.6,2967.5,0.001]
[1766734894524,0.9242,2968.3,2967.5,0.001]
[1766734895928,0.9242,2968.2,2967.5,0.001]
[1766734898025,0.9242,2968.1,2967.5,0.001]
[1766734900310,1.8082,2968.1,2967.5,0.001]
[1766734902020,0.9242,2968.5,2967.5,0.001]
[1766734902221,0.884,2968.4,2967.6,2.463386]
[1766734902395,0.9242,2968.5,2967.7,0.03369612]
[1766734902829,0.9242,2968.5,2967.8,0.03369499]
[1766734903010,0.884,2968.7,2967.9,0.03369385]
[1766734903218,1.8213,2968.7,2967.9,0.03369385]
[1766734903417,1.06613,2968.7,2967.9,0.03369385]
[1766734903613,0.9373,2968.6,2967.6,8.059603]
[1766734903827,0.9373,2968.6,2967.5,0.001]
[1766734904040,0.9373,2968.6,2967.7,6.73922566]
[1766734904822,0.002,2968.7,2967.8,0.03369499]
[1766734905033,0.002,2968.7,2967.9,0.67729207]
[1766734905228,0.9607,2968.7,2967.9,0.67729207]
[1766734906393,0.9607,2968.7,2967.5,0.001]
[1766734906595,0.9607,2968.7,2967.7,3.36958385]
[1766734906804,0.9587,2968.6,2967.7,2.482141]
[1766734907026,0.9587,2968.6,2967.6,3.36963591]
[1766734907324,0.9587,2968.4,2967.6,5.70394495]
[1766734907500,0.9587,2968.4,2967.6,3.36970695]
[1766734907842,0.9587,2968.4,2967.6,3.3696883]
[1766734908119,0.9587,2968.3,2967.6,3.3696883]
[1766734908624,0.9587,2968.3,2967.6,3.366001]
[1766734908793,0.9587,2968.3,2967.6,0.67406331]
[1766734908996,0.9587,2968.3,2967.5,0.001]
[1766734912107,0.002,2968.7,2967.6,15.885363]
[1766734912332,0.002,2968.7,2967.5,0.001]
[1766734912333,0.002,2968.7,2967.5,0.885]
[1766734912527,0.9607,2968.7,2967.5,0.001]
[1766734913027,0.9607,2968.7,2967.7,6.73922566]
[1766734913201,0.9607,2968.7,2967.8,0.67392257]
[1766734913401,0.9607,2968.7,2967.7,6.73922566]
[1766734913732,0.9607,2968.7,2967.7,3.36961283]
[1766734914102,0.9587,2968.6,2967.7,3.36961283]
[1766734914408,0.9587,2968.6,2967.6,3.3696829]
[1766734914608,0.9587,2968.6,2967.7,0.33706829]
[1766734914824,0.9587,2968.6,2967.6,3.3696829]
[1766734915026,0.9587,2968.6,2967.5,6.74060117]
[1766734915339,0.9587,2968.6,2967.6,0.03369726]
[1766734917010,0.9587,2968.6,2967.7,6.73922566]
[1766734917330,0.9587,2968.6,2967.8,0.03369499]